Cogmind - Beta 9.6 *** ADVENTURER MODE // 2020.07.27 @ 10:12:35 Player: Plexion Result: Self-destructed Performance ------------- Evolutions (1) 500 Regions Visited (4) 800 Robots Destroyed (35) 175 Value Destroyed (706) 706 Prototype IDs (0) 0 Alien Tech Used (0) 0 Bonus (96) 96 TOTAL SCORE: 2277 Bonus ------- High Alert Combat Kills 11 Follower Combat Kills 85 Cogmind --------- Core Integrity 192/400 Matter 300/300 Energy 100/100 System Corruption 0% Temperature Cool (0) Movement Walking (150) Ox1 Location -9/Storage Parts ------- > --- POWER (1) -------- (None) > --- PROPULSION (3) --- Aluminum Leg Aluminum Leg > --- UTILITY (3) ------ Improved Heat Sink Large Storage Unit Large Storage Unit > --- WEAPON (2) ------- Beam Cannon Beam Cannon > --- INVENTORY (16) --- Light Nuclear Core Aluminum Leg Medium Storage Unit Medium Storage Unit Melee Analysis Suite Melee Analysis Suite Beam Rifle Light Assault Rifle Grenade Launcher Grenade Launcher Mining Claw Peak State ------------ > --- POWER ------------ Light Nuclear Core > --- PROPULSION ------- Aluminum Leg Aluminum Leg Aluminum Leg > --- UTILITY ---------- Improved Heat Sink Medium Storage Unit Medium Storage Unit > --- WEAPON ----------- Small Laser Light Assault Rifle > --- INVENTORY -------- Light Nuclear Core Aluminum Leg Grenade Launcher Grenade Launcher Mining Claw [Rating: 13] Favorites ----------- Power Light Ion Engine Engine Light Ion Engine Power Core Light Nuclear Core Propulsion Aluminum Leg Leg Aluminum Leg Utility Medium Storage Unit Device Improved Heat Sink Storage Medium Storage Unit Weapon Light Assault Rifle Energy Gun Medium Laser Energy Cannon Beam Cannon Ballistic Gun Light Assault Rifle Launcher Grenade Launcher Slashing Weapon Mining Claw Build | -11 -10 -10 -9 -9 ------- Run | Scr Mat Min Mat Sto Slots Evolved 2 | . . . 2 . Power . | . . . . . Propulsion 1 | . . . 1 . Utility 1 | . . . 1 . Weapon . | . . . . . Parts Attached 26 | 6 4 . 16 . Power 3 | 1 . . 2 . Engine 2 | 1 . . 1 . Core 1 | . . . 1 . Reactor . | . . . . . Propulsion 5 | 2 . . 3 . Treads . | . . . . . Leg 5 | 2 . . 3 . Wheel . | . . . . . Hover . | . . . . . Flight . | . . . . . Utility 7 | 1 2 . 4 . Device 2 | . . . 2 . Storage 5 | 1 2 . 2 . Processor . | . . . . . Hackware . | . . . . . Protection . | . . . . . Artifact . | . . . . . Weapon 11 | 2 2 . 7 . Energy Gun 4 | 2 . . 2 . Energy Cannon 2 | . . . 2 . Ballistic Gun 3 | . 2 . 1 . Ballistic Cannon . | . . . . . Launcher 1 | . . . 1 . Special Weapon . | . . . . . Impact Weapon . | . . . . . Slashing Weapon 1 | . . . 1 . Piercing Weapon . | . . . . . Special Melee Weapon . | . . . . . Unidentified Prototypes . | . . . . . Parts Lost 12 | . 2 . 10 . Power 3 | . . . 3 . Propulsion 3 | . . . 3 . Utility . | . . . . . Weapon 6 | . 2 . 4 . Highest Loss Streak 5 | . 1 . 5 . Average Slot Usage (%) 91 | . 95 100 80 77 Engine 10 | . 14 14 3 . Core 1 | . . . 3 . Leg 26 | . 28 28 24 22 Device 1 | . . . 4 11 Storage 24 | . 24 28 22 22 Energy Gun 5 | . 13 . 5 . Energy Cannon 1 | . . . 3 22 Ballistic Gun 18 | . 13 28 11 . Naked Turns . | . . . . . Heaviest Build 40 | 11 23 22 40 39 Greatest Support 36 | 20 20 20 36 20 Greatest Overweight (x) 5 | 3 1 1 5 1 Average Overweight (x) . | . . 1 . 1 Largest Inventory Capacity 16 | 6 12 12 16 16 Average Capacity 12 | 5 10 12 13 16 Most Carried 11 | 2 5 6 11 11 Average Carried 5 | 1 3 5 6 11 Final Capacity 16 | 6 12 12 16 16 Final Carried 11 | 2 5 6 11 11 Class Distribution -------------------- 80% | Mutant 19% | Scavenger-Mutant Dominant Class ---------------- Mutant | -10/Materials Mutant | -10/Mines Scavenger-Mutant | -9/Materials Mutant | -9/Storage Resources | -11 -10 -10 -9 -9 ----------- Run | Scr Mat Min Mat Sto Matter Collected 660 | 221 133 8 298 . Remotely . | . . . . . Salvage Created 995 | . 323 . 672 . Parts 61 | . 23 . 38 . Haulers Intercepted 3 | . . . 3 . Recyclers Shooed . | . . . . . Parts Field Recycled . | . . . . . Retrieved Matter . | . . . . . Parts Self-Destructed . | . . . . . Prevented . | . . . . . Kills | -11 -10 -10 -9 -9 ------- Run | Scr Mat Min Mat Sto Combat Hostiles Destroyed 27 | . 9 . 18 . Guns 21 | . 9 . 12 . Cannons 1 | . . . 1 . AOE 5 | . . . 5 . Classes Destroyed 10 | . 4 . 6 . Worker 1 | . . . 1 . Builder 1 | . 1 . . . Tunneler 1 | . . . 1 . Hauler 3 | . . . 3 . Recycler 1 | . . . 1 . Watcher 1 | . 1 . . . Swarmer 13 | . 3 . 10 . Grunt 10 | . 6 . 4 . Duelist 1 | . . . 1 . Sentry 3 | . . . 3 . Best Kill Streak 6 | . 3 . 6 . Combat Bots Only 5 | . 3 . 5 . Max Kills in Single Turn 3 | . 2 . 3 . Gunslinging 1 | . 1 . . . Exploded 3 | . . . 3 . Melee . | . . . . . Uniques/NPCs Destroyed . | . . . . . Combat | -11 -10 -10 -9 -9 -------- Run | Scr Mat Min Mat Sto Damage Taken 1361 | . 369 . 992 . Core 253 | . 45 . 208 . Absorbed by Shields . | . . . . . Core Remaining (%) 91 | 100 . 82 . . Volleys Fired 97 | . 27 2 68 . Largest 2 | . 2 2 2 . Hottest 120 | . 100 40 120 . Shots Fired 176 | . 48 4 124 . Gun 166 | . 48 4 114 . Cannon 6 | . . . 6 . Launcher 4 | . . . 4 . Special . | . . . . . Kinetic 116 | . 26 4 86 . Thermal 56 | . 22 . 34 . Explosive 4 | . . . 4 . Electromagnetic . | . . . . . Robot Hit Streak 37 | . 37 8 14 . Robot Miss Streak 2 | . 1 . 2 . Penetration Max . | . . . . . Secondary Targets 5 | . 2 . 3 . Max Gunslinging Chain 1 | . 1 . 1 . Shots Hit Robots 138 | . 41 4 93 . Core Hits 58 | . 16 2 40 . Critical Hits . | . . . . . Critical Kills . | . . . . . Critical Parts Destroyed . | . . . . . Melee Attacks 4 | . . . 4 . Impact . | . . . . . Slashing 4 | . . . 4 . Piercing . | . . . . . Sneak Attacks . | . . . . . Combat Hostiles . | . . . . . Follow-up Attacks . | . . . . . Damage Inflicted 1911 | . 494 43 1374 . Guns 1384 | . 494 43 847 . Cannons 86 | . . . 86 . Explosions 441 | . . . 441 . Melee . | . . . . . Ramming . | . . . . . Kinetic 860 | . 241 43 576 . Thermal 610 | . 253 . 357 . Explosive 441 | . . . 441 . Electromagnetic . | . . . . . Impact . | . . . . . Slashing . | . . . . . Piercing . | . . . . . Highest Corruption . | . . . . . Average Corruption . | . . . . . Corruption Purged . | . . . . . Overload Shots . | . . . . . Overflow Damage 8 | . . . 8 . Projectiles . | . . . . . Explosions 8 | . . . 8 . Melee . | . . . . . Knockbacks . | . . . . . Impact . | . . . . . Kinetic . | . . . . . Secondary . | . . . . . Self-Inflicted Damage 71 | . . . 71 . Shots 3 | . . . 3 . Rammed . | . . . . . Targets Rammed . | . . . . . Kicked . | . . . . . Crushed . | . . . . . Highest Temperature 304 | . 304 . 36 . Average Temperature 84 | . 102 . 10 . Received Heat Transfer 447 | . 249 . 198 . Effects 1 | . 1 . . . Interference 1 | . 1 . . . Siege Activations . | . . . . . Robots Corrupted . | . . . . . Combat Hostiles . | . . . . . Parts Fried . | . . . . . Impact Corruptions . | . . . . . Robots Melted . | . . . . . Combat Hostiles . | . . . . . Parts Melted 4 | . 3 . 1 . Heat Transferred 1550 | . 740 . 810 . Parts Sabotaged . | . . . . . Parts Stolen . | . . . . . Parts Stripped . | . . . . . Power Chain Reactions . | . . . . . Missiles Intercepted . | . . . . . Alert | -11 -10 -10 -9 -9 ------- Run | Scr Mat Min Mat Sto Peak Influence 431 | . 182 18 431 154 Average Influence 117 | . 99 9 247 154 Maximum Alert Level 2 | . . . 2 . Low Security (%) 76 | 100 100 100 35 100 Level 1 19 | . . . 54 . Level 2 3 | . . . 10 . Level 3 . | . . . . . Level 4 . | . . . . . Level 5 . | . . . . . High Security . | . . . . . Max Security . | . . . . . Squads Dispatched 3 | . 1 . 2 . Investigation 2 | . 1 . 1 . Extermination . | . . . . . Reinforcement 1 | . . . 1 . Assault . | . . . . . Garrison . | . . . . . Intercept . | . . . . . Construction Impeded 1 | . . . 1 . Haulers Reinforced . | . . . . . Stealth | -11 -10 -10 -9 -9 --------- Run | Scr Mat Min Mat Sto Distress Signals 4 | . . . 4 . Communications Jammed . | . . . . . Distress Signals . | . . . . . Times Spotted 52 | . 13 . 39 . Peak Tracking Total 7 | . 3 . 7 . Tactical Retreats 1 | . . . 1 . Traps | -11 -10 -10 -9 -9 ------- Run | Scr Mat Min Mat Sto Traps Triggered 1 | . 1 . . . Indirectly . | . . . . . Trap Hack Attempts . | . . . . . Triggered . | . . . . . Disarmed . | . . . . . Reprogrammed . | . . . . . Reused . | . . . . . Traps Extracted . | . . . . . Installed . | . . . . . Triggered . | . . . . . Machines | -11 -10 -10 -9 -9 ---------- Run | Scr Mat Min Mat Sto Machines Disabled . | . . . . . Max in Single Turn . | . . . . . Machines Sabotaged . | . . . . . Garrisons Compromised . | . . . . . Overloaded Fab Kills . | . . . . . Fab Network Shutdowns . | . . . . . Hacking | -11 -10 -10 -9 -9 --------- Run | Scr Mat Min Mat Sto Machines Accessed 4 | . 2 . 2 . Terminals 4 | . 2 . 2 . Fabricators . | . . . . . Repair Stations . | . . . . . Recycling Units . | . . . . . Scanalyzers . | . . . . . Garrison Access . | . . . . . Total Hacks 9 | . 4 . 5 . Successful 2 | . 1 . 1 . Failed 7 | . 3 . 4 . Catastrophic 1 | . 1 . . . Database Lockouts . | . . . . . Manual 9 | . 4 . 5 . Terminals 9 | . 4 . 5 . Fabricators . | . . . . . Repair Stations . | . . . . . Recycling Units . | . . . . . Scanalyzers . | . . . . . Garrison Access . | . . . . . Terminal Hacks 2 | . 1 . 1 . Branch Access Points 2 | . 1 . 1 . Fabricator Hacks . | . . . . . Repair Station Hacks . | . . . . . Recycling Unit Hacks . | . . . . . Scanalyzer . | . . . . . Garrison Access Hacks . | . . . . . Unauthorized Hacks . | . . . . . Terminals . | . . . . . Fabricators . | . . . . . Repair Stations . | . . . . . Recycling Units . | . . . . . Scanalyzers . | . . . . . Garrison Access . | . . . . . Data Cores Recovered 1 | . . . 1 . Used 1 | . . . 1 . Hacking Detections 3 | . 2 . 1 . Full Trace Events 1 | . . . 1 . Feedback Events . | . . . . . Feedback Blocked . | . . . . . Robot Schematics Acquired . | . . . . . Robots Built . | . . . . . Matter . | . . . . . Time . | . . . . . Total Robot Build Rating . | . . . . . Part Schematics Acquired . | . . . . . Parts Built . | . . . . . Matter . | . . . . . Time . | . . . . . Total Part Build Rating . | . . . . . Parts Repaired . | . . . . . Time . | . . . . . Parts Recycled . | . . . . . Recycled Matter . | . . . . . Retrieved Matter . | . . . . . Retrieved Components . | . . . . . Parts Scanalyzed . | . . . . . Part Schematics Acquired . | . . . . . Parts Damaged . | . . . . . Bothacking | -11 -10 -10 -9 -9 ------------ Run | Scr Mat Min Mat Sto Used RIF Installer . | . . . . . Robots Hacked . | . . . . . Non-combat . | . . . . . Combat . | . . . . . Robot Hacks Applied . | . . . . . Relay Couplers Released . | . . . . . Robots Rewired . | . . . . . Allies Hacked . | . . . . . Hacks Repelled . | . . . . . Allies | -11 -10 -10 -9 -9 -------- Run | Scr Mat Min Mat Sto Total Allies 3 | . . 3 . . Largest Group 3 | . . 3 3 . Highest-Rated Group 40 | . . 40 40 . Highest-Rated Ally 16 | . . 16 16 . Total Orders . | . . . . . Ally Attacks 40 | . . . 40 . Total Damage 342 | . . . 342 . Kills 9 | . . . 9 . Allies Corrupted . | . . . . . Allies Melted . | . . . . . Intel | -11 -10 -10 -9 -9 ------- Run | Scr Mat Min Mat Sto Robot Analysis Total . | . . . . . Derelict Logs Recovered 1 | . . 1 . . Drone Launches . | . . . . . Drone Recoveries . | . . . . . Exploration | -11 -10 -10 -9 -9 ------------- Run | Scr Mat Min Mat Sto Turns Passed 2023 | 55 468 749 731 20 Spaces Moved 1144 | 33 257 493 348 13 Core 8 | 7 . . 1 . Treads . | . . . . . Legs 1136 | 26 257 493 347 13 Wheels . | . . . . . Hover . | . . . . . Flight . | . . . . . Fastest Speed 50 | 50 120 150 120 150 Average Speed 144 | 126 141 150 139 150 Slowest Speed 300 | 200 150 150 300 150 Overloaded Moves . | . . . . . Propulsion Burnouts . | . . . . . Robots Hopped . | . . . . . Cave-ins Triggered . | . . . . . Exploration Rate (%) 40 | 3 56 93 46 3 Regions Visited 4 Branch Regions 2 Pre-discovered Areas . | . . . . . Known Exits Taken 2 | . 1 . 1 . Unknown Exits Taken 2 | 1 . 1 . . Scrap Searched 2 | . . 2 . . Spaces Dug 1 | . . . 1 . Terrain Destroyed 17 | . . . 17 . Melee 1 | . . . 1 . Projectile . | . . . . . AOE 16 | . . . 16 . Actions | -11 -10 -10 -9 -9 --------- Run | Scr Mat Min Mat Sto Total 1336 | 43 315 499 466 13 Wait 51 | 3 22 4 22 . Move 1140 | 32 256 492 347 13 Hop . | . . . . . Pick Up 14 | 2 5 1 6 . Fast Attach 15 | 6 1 . 8 . Attach 6 | . 2 . 4 . Detach 2 | . . . 2 . Swap 5 | . 1 . 4 . Drop 2 | . 1 . 1 . Fire 97 | . 27 2 68 . Melee 4 | . . . 4 . Ram . | . . . . . Kick . | . . . . . Crush . | . . . . . Escape Stasis . | . . . . . Rewire . | . . . . . Trap . | . . . . . Miscellaneous . | . . . . . Route ------- -11/Scrapyard -10/Materials (discovered 4 exits: *Mat x2 / *Min x2) -10/Mines (discovered 2 exits: *Mat x2) -9/Materials (discovered 3 exits: *Min / *Sto x2) -9/Storage History --------- Turn | Location | Event 19 | -11/Scrapyard | Discovered new exit (range 16) 56 | -11/Scrapyard | Entered Materials 125 | -10/Materials | Discovered new exit (range 16) 215 | -10/Materials | Discovered new exit (range 8) 260 | -10/Materials | Identified exit to Mines 301 | -10/Materials | Build established: Mutant 326 | -10/Materials | Discovered new exit (range 15) 524 | -10/Materials | Entered Mines 607 | -10/Mines | Discovered new exit (range 16) 684 | -10/Mines | Assisted by bots powering up and referring to "LRC-V3" 725 | -10/Mines | Learned Materials emergency access door positions 739 | -10/Mines | Assisted by bots powering up and referring to "LRC-V3" 821 | -10/Mines | Found a damaged Exp. Sensor Array with a note attached 878 | -10/Mines | Discovered new exit (range 7) 1273 | -10/Mines | Entered Materials 1273 | -9/Materials | Accompanied by 3 allies 1273 | -9/Materials | Evolved 2 slots: Propulsion x1, Utility x1 1565 | -9/Materials | Lost 5 parts (1p2n2w) 1841 | -9/Materials | Lost 4 parts (1p1n2w) 1846 | -9/Materials | Build established: Scavenger-Mutant 1938 | -9/Materials | Discovered new exit (range 13) 1961 | -9/Materials | Identified exit to Mines 1961 | -9/Materials | Identified exit to Storage 1983 | -9/Materials | Core integrity fell below 50% 2004 | -9/Materials | Entered Storage 2024 | -9/Storage | Self-destructed Last Messages --------------- 01850_ U-05 Engineer lays Concrete. 01850_ U-05 Engineer builds a Wall. 01855_ U-05 Engineer lays Concrete. 01867_ Acquired Melee Analysis Suite. 01927_ W-16 Scout distress signal alerts nearby ally. 01938_ EXIT=FOUND 01939_ W-16 Scout distress signal alerts nearby ally. 01961_ Connecting with Terminal... >>Access(Branch) Found 3 branch access points: (49,48) Mines (7,35) Storage (53,31) Storage Map updated. 01980_ Heat Sink melted. 01980_ Y-45 Defender destroyed. 01983_ Acquired 39 matter. 01995_ R-06 Scavenger collects Hvy. Assault Rifle. LOCATION=STORAGE GOAL=ESCAPE Map ----- +----------------------------------------------------+ | ????????????????????????????????? | | ????????????????????????????????? | | ????????????????????????????????? | | ????????????????????????????????? | | ????????????????????????????????? | | ???######???????????????????????? | | ???# ????????????????????????? | | ???# ????????????????????????? | | ???# ????????????????????????? | | ???# #????????????????????????? | | ???# #????????????????????????? | | ???# #????????????????????????? | | ???# #????????????????????????? | | ???# #????????????????????????? | | ???# #????????????????????????? | | ???# #????????????????????????? | | ???## ##????????????????????????? | | ????# #?????????????????????????? | | ????# #?????????????????????????? | | ????# #?????????????????????????? | | ????# #?????????????????????????? | | ????# #?????????????????????????? | | ????# #?????????????????????????? | | ????# #?????????????????????????? | | ????# ###########???????????????? | | ????# @ ????????? | | ????#############???????????????? | | ????????????????????????????????? | | ????????????????????????????????? | | ????????????????????????????????? | | ????????????????????????????????? | | | | | | | | | | | | | | | | | | | | | | | | | | | | | | | | | | | | | | | +----------------------------------------------------+ Best States ------------- Heat Dissipation 42 Energy Generation 14 Energy Capacity 160 Matter Stores 300 Matter Capacity 300 Sight Range 16 Terrain Scan Density 10 Additional Mass Support 6 Resistance: KI 20 Resistance: TH 20 Resistance: EX 20 Resistance: EM 20 Resistance: I 20 Resistance: S 20 Resistance: P 20 Evasion (%) 40 Offensive Hacking 10 Item Schematics ----------------- None Robot Schematics ------------------ None Fabricated ------------ Nothing Alien Tech Used ----------------- None Achievements -------------- None Challenges ------------ None Game ------ Seed GravitonWeightMace Manual? 0 Play Time 00:11:48 Cumulative 66.4 hours Start 2020.07.27 @ 10:00:34 End 2020.07.27 @ 10:12:35 Sessions 1 Manual Loads 0 Difficulty Adventurer Special Mode None Game No. 78 Rogue 1 Adventurer 77 Explorer 0 Win Type - Total 2 Types 2/0/0/0/0/0/0 Lore% 34 Gallery% 50 Achievement% 45 Wizard Run 0 Options --------- ASCII 0 Keyboard 1 Movement Numpad Keybinds 0 Fullscreen 1 Font 18/SmallcapsGlow Map View 76x50 Tactical HUD 1 Map Filters NONE Filters NONE Steam 1 RUN: 63d93ca3-aabf-46cc-a7bb-54c7790551f2